[Event "Titled Tuesday Blitz May 17 Early 2022"]
[White "Andreikin, Dmitry"]
[Black "Svane, Rasmus"]
[WhiteFideId "4158814"]
[BlackFideId "4657101"]
[WhiteElo "2736"]
[BlackElo "2674"]
[Result "1-0"]
[Round "11"]
[TimeControl "180+1"]
[Date "2022.05.17"]
[WhiteClock "0:00:06"]
[BlackClock "0:00:01"]

1. d4 {[%clk 0:03:00]}  Nf6 {[%clk 0:02:59]} 2. c4 {[%clk 0:02:59]}  e6 {[%clk 0:03:00]} 3. Nf3 {[%clk 0:02:59]}  d5 {[%clk 0:02:59]} 4. g3 {[%clk 0:02:59]}  Be7 {[%clk 0:02:59]} 5. Bg2 {[%clk 0:02:59]}  O-O {[%clk 0:03:00]} 6. O-O {[%clk 0:03:00]}  dxc4 {[%clk 0:03:00]} 7. Qc2 {[%clk 0:03:00]}  a6 {[%clk 0:03:00]} 8. a4 {[%clk 0:02:59]}  Bd7 {[%clk 0:03:00]} 9. Qxc4 {[%clk 0:03:00]}  Bc6 {[%clk 0:03:01]} 10. Bf4 {[%clk 0:03:01]}  Bd6 {[%clk 0:02:59]} 11. Qc1 {[%clk 0:03:01]}  Nbd7 {[%clk 0:02:53]} 12. Nc3 {[%clk 0:03:00]}  Qe7 {[%clk 0:02:49]} 13. a5 {[%clk 0:03:00]}  Rfe8 {[%clk 0:02:45]} 14. Rd1 {[%clk 0:02:55]}  Bxf3 {[%clk 0:02:29]} 15. Bxf3 {[%clk 0:02:55]}  c6 {[%clk 0:02:29]} 16. Bxd6 {[%clk 0:02:34]}  Qxd6 {[%clk 0:02:29]} 17. Na4 {[%clk 0:02:26]}  Rad8 {[%clk 0:02:26]} 18. Qc3 {[%clk 0:02:26]}  h6 {[%clk 0:02:16]} 19. e3 {[%clk 0:02:21]}  Qc7 {[%clk 0:01:38]} 20. b4 {[%clk 0:02:12]}  Qb8 {[%clk 0:01:22]} 21. Bg2 {[%clk 0:02:10]}  e5 {[%clk 0:01:18]} 22. dxe5 {[%clk 0:02:07]}  Nxe5 {[%clk 0:01:15]} 23. Nc5 {[%clk 0:02:07]}  Ned7 {[%clk 0:01:15]} 24. Nb3 {[%clk 0:02:06]}  Nf8 {[%clk 0:01:13]} 25. Nd4 {[%clk 0:02:01]}  Ne6 {[%clk 0:01:13]} 26. Nf5 {[%clk 0:02:00]}  Rxd1+ {[%clk 0:01:08]} 27. Rxd1 {[%clk 0:02:00]}  Rd8 {[%clk 0:01:09]} 28. Rc1 {[%clk 0:01:43]}  Kh7 {[%clk 0:01:06]} 29. Qc2 {[%clk 0:01:36]}  g6 {[%clk 0:01:01]} 30. Qb2 {[%clk 0:01:37]}  Nd5 {[%clk 0:00:55]} 31. Nh4 {[%clk 0:01:29]}  Qd6 {[%clk 0:00:49]} 32. Rb1 {[%clk 0:01:27]}  Qe7 {[%clk 0:00:48]} 33. Nf3 {[%clk 0:01:23]}  Qf6 {[%clk 0:00:47]} 34. Ne5 {[%clk 0:01:20]}  Kg8 {[%clk 0:00:44]} 35. h4 {[%clk 0:01:14]}  h5 {[%clk 0:00:44]} 36. Bh3 {[%clk 0:01:08]}  Ndc7 {[%clk 0:00:41]} 37. Bf1 {[%clk 0:01:01]}  Rd5 {[%clk 0:00:38]} 38. f4 {[%clk 0:01:01]}  Rd8 {[%clk 0:00:38]} 39. Bc4 {[%clk 0:00:55]}  Nd5 {[%clk 0:00:38]} 40. Re1 {[%clk 0:00:53]}  Ne7 {[%clk 0:00:31]} 41. e4 {[%clk 0:00:51]}  Kh7 {[%clk 0:00:25]} 42. Qa2 {[%clk 0:00:43]}  Rd4 {[%clk 0:00:24]} 43. Nf3 {[%clk 0:00:40]}  Rd8 {[%clk 0:00:23]} 44. Bxe6 {[%clk 0:00:35]}  fxe6 {[%clk 0:00:24]} 45. Qxe6 {[%clk 0:00:28]}  Qxe6 {[%clk 0:00:21]} 46. Ng5+ {[%clk 0:00:29]}  Kg8 {[%clk 0:00:22]} 47. Nxe6 {[%clk 0:00:29]}  Rd3 {[%clk 0:00:23]} 48. Kf2 {[%clk 0:00:29]}  Rb3 {[%clk 0:00:22]} 49. Rd1 {[%clk 0:00:29]}  Rxb4 {[%clk 0:00:21]} 50. Rd8+ {[%clk 0:00:27]}  Kf7 {[%clk 0:00:20]} 51. Ng5+ {[%clk 0:00:28]}  Kg7 {[%clk 0:00:20]} 52. Re8 {[%clk 0:00:27]}  Ng8 {[%clk 0:00:18]} 53. Ke3 {[%clk 0:00:20]}  Nf6 {[%clk 0:00:17]} 54. Re7+ {[%clk 0:00:20]}  Kg8 {[%clk 0:00:18]} 55. Kd3 {[%clk 0:00:19]}  c5 {[%clk 0:00:18]} 56. Re6 {[%clk 0:00:18]}  Kg7 {[%clk 0:00:15]} 57. Re7+ {[%clk 0:00:15]}  Kg8 {[%clk 0:00:16]} 58. Re6 {[%clk 0:00:13]}  Kg7 {[%clk 0:00:16]} 59. Rd6 {[%clk 0:00:13]}  Ng4 {[%clk 0:00:11]} 60. Rd7+ {[%clk 0:00:12]}  Kf8 {[%clk 0:00:11]} 61. e5 {[%clk 0:00:10]}  Ke8 {[%clk 0:00:11]} 62. Rg7 {[%clk 0:00:09]}  Rb3+ {[%clk 0:00:09]} 63. Kc4 {[%clk 0:00:08]}  Rxg3 {[%clk 0:00:09]} 64. Kxc5 {[%clk 0:00:08]}  Rc3+ {[%clk 0:00:07]} 65. Kb6 {[%clk 0:00:07]}  Rb3+ {[%clk 0:00:06]} 66. Kc7 {[%clk 0:00:08]}  Ne3 {[%clk 0:00:06]} 67. e6 {[%clk 0:00:08]}  Nd5+ {[%clk 0:00:06]} 68. Kd6 {[%clk 0:00:07]}  Nf6 {[%clk 0:00:06]} 69. Rxg6 {[%clk 0:00:07]}  Rd3+ {[%clk 0:00:06]} 70. Kc7 {[%clk 0:00:07]}  Nd5+ {[%clk 0:00:06]} 71. Kxb7 {[%clk 0:00:07]}  Nxf4 {[%clk 0:00:07]} 72. Rg7 {[%clk 0:00:06]}  Rd6 {[%clk 0:00:07]} 73. e7 {[%clk 0:00:05]}  Nd5 {[%clk 0:00:06]} 74. Ne4 {[%clk 0:00:04]}  Re6 {[%clk 0:00:06]} 75. Nc5 {[%clk 0:00:05]}  Rxe7+ {[%clk 0:00:05]} 76. Rxe7+ {[%clk 0:00:05]}  Nxe7 {[%clk 0:00:05]} 77. Nxa6 {[%clk 0:00:04]}  Kd8 {[%clk 0:00:04]} 78. Nb4 {[%clk 0:00:05]}  Nf5 {[%clk 0:00:03]} 79. a6 {[%clk 0:00:04]}  Nd6+ {[%clk 0:00:04]} 80. Kb6 {[%clk 0:00:04]}  Nc8+ {[%clk 0:00:04]} 81. Kc6 {[%clk 0:00:05]}  Ke7 {[%clk 0:00:03]} 82. Kc7 {[%clk 0:00:05]}  Nd6 {[%clk 0:00:03]} 83. Nc6+ {[%clk 0:00:05]}  Ke6 {[%clk 0:00:04]} 84. Nd4+ {[%clk 0:00:06]}  Kd5 {[%clk 0:00:03]} 85. a7 {[%clk 0:00:06]}  Nb5+ {[%clk 0:00:01]} 86. Nxb5 {[%clk 0:00:06]} 1-0


[Site "https://www.chess.com"]

[Event "Titled Tuesday Blitz May 17 Early 2022"]
[White "Barria Zuniga, Daniel"]
[Black "Raahul V S"]
[WhiteFideId "3400816"]
[BlackFideId "25035525"]
[WhiteElo "2414"]
[BlackElo "2185"]
[Result "1-0"]
[Round "11"]
[TimeControl "180+1"]
[Date "2022.05.17"]
[WhiteClock "0:00:13"]
[BlackClock "0:00:01"]

1. c4 {[%clk 0:03:00]}  f5 {[%clk 0:02:57]} 2. g3 {[%clk 0:03:01]}  Nf6 {[%clk 0:02:57]} 3. Bg2 {[%clk 0:03:02]}  e6 {[%clk 0:02:57]} 4. Nf3 {[%clk 0:03:01]}  d5 {[%clk 0:02:58]} 5. O-O {[%clk 0:03:01]}  Bd6 {[%clk 0:02:58]} 6. d3 {[%clk 0:03:01]}  O-O {[%clk 0:02:58]} 7. Nc3 {[%clk 0:03:01]}  Nc6 {[%clk 0:02:47]} 8. e4 {[%clk 0:02:56]}  fxe4 {[%clk 0:02:46]} 9. dxe4 {[%clk 0:02:56]}  d4 {[%clk 0:02:46]} 10. Nxd4 {[%clk 0:02:53]}  Ne5 {[%clk 0:02:41]} 11. Qe2 {[%clk 0:02:50]}  Bc5 {[%clk 0:02:34]} 12. Nb3 {[%clk 0:02:48]}  Bb4 {[%clk 0:02:29]} 13. Rd1 {[%clk 0:02:45]}  Qe7 {[%clk 0:02:29]} 14. f4 {[%clk 0:02:44]}  Neg4 {[%clk 0:02:28]} 15. e5 {[%clk 0:02:36]}  Bc5+ {[%clk 0:02:27]} 16. Kf1 {[%clk 0:02:09]}  Nxh2+ {[%clk 0:02:25]} 17. Ke1 {[%clk 0:02:08]}  Nfg4 {[%clk 0:02:19]} 18. Ne4 {[%clk 0:01:57]}  Bb4+ {[%clk 0:02:16]} 19. Bd2 {[%clk 0:01:56]}  Nh6 {[%clk 0:02:10]} 20. c5 {[%clk 0:01:39]}  Bxd2+ {[%clk 0:02:08]} 21. Rxd2 {[%clk 0:01:40]}  Bd7 {[%clk 0:01:55]} 22. Rad1 {[%clk 0:01:35]}  Bc6 {[%clk 0:01:55]} 23. Ng5 {[%clk 0:01:35]}  N2g4 {[%clk 0:01:28]} 24. Bxc6 {[%clk 0:01:30]}  bxc6 {[%clk 0:01:29]} 25. Rd7 {[%clk 0:01:30]}  Qe8 {[%clk 0:01:29]} 26. Rxc7 {[%clk 0:01:14]}  Qh5 {[%clk 0:01:24]} 27. Rdd7 {[%clk 0:01:07]}  Nf5 {[%clk 0:01:17]} 28. Qg2 {[%clk 0:00:41]}  Nge3 {[%clk 0:01:12]} 29. Qh3 {[%clk 0:00:36]}  Qxh3 {[%clk 0:00:31]} 30. Nxh3 {[%clk 0:00:37]}  Rfc8 {[%clk 0:00:30]} 31. Kf2 {[%clk 0:00:31]}  Nc4 {[%clk 0:00:23]} 32. Ng5 {[%clk 0:00:28]}  Rxc7 {[%clk 0:00:14]} 33. Rxc7 {[%clk 0:00:29]}  a5 {[%clk 0:00:14]} 34. Nxe6 {[%clk 0:00:27]}  a4 {[%clk 0:00:14]} 35. Nbd4 {[%clk 0:00:27]}  Nxd4 {[%clk 0:00:14]} 36. Nxd4 {[%clk 0:00:27]}  Nxb2 {[%clk 0:00:15]} 37. Nxc6 {[%clk 0:00:27]}  Nd3+ {[%clk 0:00:14]} 38. Ke3 {[%clk 0:00:26]}  Nb4 {[%clk 0:00:15]} 39. Ke4 {[%clk 0:00:24]}  Nxa2 {[%clk 0:00:14]} 40. Nd4 {[%clk 0:00:24]}  Nc3+ {[%clk 0:00:14]} 41. Kd3 {[%clk 0:00:23]}  Nd5 {[%clk 0:00:13]} 42. Rd7 {[%clk 0:00:23]}  Nb4+ {[%clk 0:00:12]} 43. Kc4 {[%clk 0:00:23]}  Na6 {[%clk 0:00:09]} 44. c6 {[%clk 0:00:18]}  a3 {[%clk 0:00:09]} 45. c7 {[%clk 0:00:17]}  Nxc7 {[%clk 0:00:08]} 46. Rxc7 {[%clk 0:00:17]}  a2 {[%clk 0:00:08]} 47. Nc2 {[%clk 0:00:17]}  a1=Q {[%clk 0:00:02]} 48. Nxa1 {[%clk 0:00:16]}  Rxa1 {[%clk 0:00:03]} 49. e6 {[%clk 0:00:17]}  Kf8 {[%clk 0:00:03]} 50. Rf7+ {[%clk 0:00:16]}  Kg8 {[%clk 0:00:03]} 51. Rd7 {[%clk 0:00:16]}  Kf8 {[%clk 0:00:03]} 52. Kd5 {[%clk 0:00:16]}  Rd1+ {[%clk 0:00:02]} 53. Kc6 {[%clk 0:00:14]}  Re1 {[%clk 0:00:02]} 54. Kd6 {[%clk 0:00:14]}  Rd1+ {[%clk 0:00:02]} 55. Kc7 {[%clk 0:00:14]}  Re1 {[%clk 0:00:02]} 56. Rf7+ {[%clk 0:00:14]}  Ke8 {[%clk 0:00:01]} 57. Rxg7 {[%clk 0:00:13]} 1-0


[Site "https://www.chess.com"]

[Event "Titled Tuesday Blitz May 17 Early 2022"]
[White "Demchenko, Anton"]
[Black "Nakamura, Hikaru"]
[WhiteFideId "4160258"]
[BlackFideId "2016192"]
[WhiteElo "2539"]
[BlackElo "2850"]
[Result "1-0"]
[Round "11"]
[TimeControl "180+1"]
[Date "2022.05.17"]
[WhiteClock "0:00:17"]
[BlackClock "0:00:14"]

1. e4 {[%clk 0:03:00]}  c6 {[%clk 0:02:51]} 2. d4 {[%clk 0:02:59]}  d5 {[%clk 0:02:50]} 3. e5 {[%clk 0:03:00]}  Bf5 {[%clk 0:02:50]} 4. Bd3 {[%clk 0:03:00]}  Bxd3 {[%clk 0:02:49]} 5. Qxd3 {[%clk 0:03:01]}  Qa5+ {[%clk 0:02:50]} 6. c3 {[%clk 0:03:02]}  Qa6 {[%clk 0:02:50]} 7. Qd1 {[%clk 0:03:02]}  e6 {[%clk 0:02:49]} 8. Ne2 {[%clk 0:03:02]}  c5 {[%clk 0:02:47]} 9. O-O {[%clk 0:03:03]}  Nc6 {[%clk 0:02:47]} 10. Be3 {[%clk 0:02:59]}  cxd4 {[%clk 0:02:47]} 11. cxd4 {[%clk 0:02:59]}  Nge7 {[%clk 0:02:48]} 12. Ng3 {[%clk 0:02:59]}  g6 {[%clk 0:02:40]} 13. Nd2 {[%clk 0:02:59]}  h5 {[%clk 0:02:40]} 14. h4 {[%clk 0:02:58]}  Nf5 {[%clk 0:02:24]} 15. Nxf5 {[%clk 0:02:58]}  gxf5 {[%clk 0:02:25]} 16. Nf3 {[%clk 0:02:58]}  Be7 {[%clk 0:02:26]} 17. a3 {[%clk 0:02:54]}  Kd7 {[%clk 0:02:22]} 18. b4 {[%clk 0:02:51]}  Rag8 {[%clk 0:02:22]} 19. g3 {[%clk 0:02:51]}  Rg4 {[%clk 0:02:20]} 20. Kh1 {[%clk 0:02:46]}  Re4 {[%clk 0:02:04]} 21. Qd2 {[%clk 0:02:36]}  Rg8 {[%clk 0:01:58]} 22. Rfb1 {[%clk 0:02:23]}  Qa4 {[%clk 0:01:57]} 23. Qd3 {[%clk 0:02:14]}  Rgg4 {[%clk 0:01:57]} 24. Rc1 {[%clk 0:02:05]}  a6 {[%clk 0:01:48]} 25. Rcb1 {[%clk 0:02:01]}  Na7 {[%clk 0:01:47]} 26. Rc1 {[%clk 0:01:49]}  Nc6 {[%clk 0:01:39]} 27. Rcb1 {[%clk 0:01:43]}  Qb5 {[%clk 0:01:14]} 28. Qd1 {[%clk 0:01:40]}  Ke8 {[%clk 0:01:14]} 29. a4 {[%clk 0:01:38]}  Qb6 {[%clk 0:01:14]} 30. b5 {[%clk 0:01:37]}  Na5 {[%clk 0:01:10]} 31. bxa6 {[%clk 0:01:37]}  Qxa6 {[%clk 0:01:10]} 32. Rb5 {[%clk 0:01:26]}  Nc4 {[%clk 0:01:10]} 33. Bg5 {[%clk 0:01:26]}  Bxg5 {[%clk 0:01:06]} 34. Nxg5 {[%clk 0:01:26]}  Rxd4 {[%clk 0:01:06]} 35. Qb3 {[%clk 0:01:17]}  Nxe5 {[%clk 0:00:34]} 36. Rxb7 {[%clk 0:01:03]}  Rxa4 {[%clk 0:00:34]} 37. Rb8+ {[%clk 0:00:48]}  Ke7 {[%clk 0:00:34]} 38. Rb1 {[%clk 0:00:47]}  Rgc4 {[%clk 0:00:27]} 39. Qe3 {[%clk 0:00:40]}  Qd6 {[%clk 0:00:23]} 40. Nh7 {[%clk 0:00:34]}  f4 {[%clk 0:00:21]} 41. R1b7+ {[%clk 0:00:20]}  Nd7 {[%clk 0:00:21]} 42. Qf3 {[%clk 0:00:20]}  Rc1+ {[%clk 0:00:14]} 43. Kg2 {[%clk 0:00:21]}  Raa1 {[%clk 0:00:15]} 44. Qxh5 {[%clk 0:00:21]}  f3+ {[%clk 0:00:14]} 45. Qxf3 {[%clk 0:00:19]}  Rh1 {[%clk 0:00:14]} 46. Qf6# {[%clk 0:00:17]} 1-0


[Site "https://www.chess.com"]

[Event "Titled Tuesday Blitz May 17 Early 2022"]
[White "Garriga Cazorla, Pere"]
[Black "Shimanov, Aleksandr"]
[WhiteFideId "32011601"]
[BlackFideId "4198603"]
[WhiteElo "2433"]
[BlackElo "2605"]
[Result "1-0"]
[Round "11"]
[TimeControl "180+1"]
[Date "2022.05.17"]
[WhiteClock "0:00:12"]
[BlackClock "0:00:01"]

1. d4 {[%clk 0:03:00]}  Nf6 {[%clk 0:02:58]} 2. c4 {[%clk 0:03:00]}  g6 {[%clk 0:02:58]} 3. Nc3 {[%clk 0:03:00]}  Bg7 {[%clk 0:02:58]} 4. e4 {[%clk 0:03:00]}  O-O {[%clk 0:02:56]} 5. h3 {[%clk 0:03:01]}  d6 {[%clk 0:02:56]} 6. Be3 {[%clk 0:03:01]}  Na6 {[%clk 0:02:52]} 7. g4 {[%clk 0:02:56]}  e5 {[%clk 0:02:51]} 8. d5 {[%clk 0:02:56]}  Nc5 {[%clk 0:02:51]} 9. f3 {[%clk 0:02:55]}  a5 {[%clk 0:02:49]} 10. Nge2 {[%clk 0:02:54]}  c6 {[%clk 0:02:30]} 11. Ng3 {[%clk 0:02:53]}  a4 {[%clk 0:02:26]} 12. Qd2 {[%clk 0:02:49]}  Qa5 {[%clk 0:02:19]} 13. h4 {[%clk 0:02:45]}  cxd5 {[%clk 0:02:11]} 14. cxd5 {[%clk 0:02:42]}  a3 {[%clk 0:02:08]} 15. b3 {[%clk 0:02:42]}  Bd7 {[%clk 0:02:01]} 16. Be2 {[%clk 0:02:30]}  Rfc8 {[%clk 0:01:59]} 17. Nd1 {[%clk 0:02:30]}  Qxd2+ {[%clk 0:01:39]} 18. Kxd2 {[%clk 0:02:31]}  Na6 {[%clk 0:01:40]} 19. Nc3 {[%clk 0:02:22]}  Bf8 {[%clk 0:01:37]} 20. g5 {[%clk 0:02:15]}  Ne8 {[%clk 0:01:33]} 21. Rhc1 {[%clk 0:02:10]}  Nb4 {[%clk 0:01:24]} 22. Nf1 {[%clk 0:02:00]}  Be7 {[%clk 0:01:21]} 23. Kd1 {[%clk 0:01:53]}  Rab8 {[%clk 0:00:29]} 24. Ba7 {[%clk 0:01:46]}  Ra8 {[%clk 0:00:29]} 25. Be3 {[%clk 0:01:45]}  Bd8 {[%clk 0:00:26]} 26. Nd2 {[%clk 0:01:45]}  Rab8 {[%clk 0:00:26]} 27. Nc4 {[%clk 0:01:21]}  Ra8 {[%clk 0:00:20]} 28. Nb6 {[%clk 0:01:15]}  Bxb6 {[%clk 0:00:19]} 29. Bxb6 {[%clk 0:01:16]}  Ng7 {[%clk 0:00:18]} 30. Be3 {[%clk 0:01:06]}  Nh5 {[%clk 0:00:17]} 31. Bd2 {[%clk 0:00:51]}  Nf4 {[%clk 0:00:16]} 32. Bxf4 {[%clk 0:00:30]}  exf4 {[%clk 0:00:17]} 33. Kd2 {[%clk 0:00:30]}  Kg7 {[%clk 0:00:14]} 34. Bb5 {[%clk 0:00:22]}  Bh3 {[%clk 0:00:09]} 35. Ba4 {[%clk 0:00:19]}  Bg2 {[%clk 0:00:06]} 36. Rg1 {[%clk 0:00:17]}  Bxf3 {[%clk 0:00:05]} 37. Raf1 {[%clk 0:00:18]}  Bh5 {[%clk 0:00:04]} 38. Rxf4 {[%clk 0:00:19]}  Rc7 {[%clk 0:00:05]} 39. Bb5 {[%clk 0:00:14]}  Rac8 {[%clk 0:00:04]} 40. Bc4 {[%clk 0:00:15]}  Re7 {[%clk 0:00:04]} 41. Rgf1 {[%clk 0:00:14]}  Rf8 {[%clk 0:00:03]} 42. Nb5 {[%clk 0:00:14]}  Rd7 {[%clk 0:00:02]} 43. Nxa3 {[%clk 0:00:14]}  Na6 {[%clk 0:00:02]} 44. Bxa6 {[%clk 0:00:13]}  bxa6 {[%clk 0:00:03]} 45. Nc4 {[%clk 0:00:14]}  Rfd8 {[%clk 0:00:03]} 46. Ke3 {[%clk 0:00:14]}  h6 {[%clk 0:00:03]} 47. Kd4 {[%clk 0:00:14]}  hxg5 {[%clk 0:00:03]} 48. hxg5 {[%clk 0:00:15]}  Re7 {[%clk 0:00:03]} 49. R1f2 {[%clk 0:00:14]}  Rdd7 {[%clk 0:00:04]} 50. Rf6 {[%clk 0:00:14]}  Rb7 {[%clk 0:00:03]} 51. Nxd6 {[%clk 0:00:14]}  Rb5 {[%clk 0:00:03]} 52. Rxf7+ {[%clk 0:00:14]}  Rxf7 {[%clk 0:00:03]} 53. Rxf7+ {[%clk 0:00:15]}  Kg8 {[%clk 0:00:04]} 54. Rb7 {[%clk 0:00:15]}  Ra5 {[%clk 0:00:04]} 55. a4 {[%clk 0:00:15]}  Bd1 {[%clk 0:00:03]} 56. Ke5 {[%clk 0:00:14]}  Kf8 {[%clk 0:00:02]} 57. Kf6 {[%clk 0:00:14]}  Kg8 {[%clk 0:00:02]} 58. Rb8+ {[%clk 0:00:13]}  Kh7 {[%clk 0:00:03]} 59. Nf7 {[%clk 0:00:13]}  Rb5 {[%clk 0:00:01]} 60. Rh8# {[%clk 0:00:12]} 1-0


[Site "https://www.chess.com"]

[Event "Titled Tuesday Blitz May 17 Early 2022"]
[White "Izzat, Kanan"]
[Black "Gurevich, Dmitry"]
[WhiteFideId "13405209"]
[BlackFideId "2000407"]
[WhiteElo "2362"]
[BlackElo "2506"]
[Result "1-0"]
[Round "11"]
[TimeControl "180+1"]
[Date "2022.05.17"]
[WhiteClock "0:00:57"]
[BlackClock "0:00:32"]

1. e4 {[%clk 0:02:59]}  c5 {[%clk 0:02:58]} 2. Nf3 {[%clk 0:02:58]}  d6 {[%clk 0:02:58]} 3. d4 {[%clk 0:02:59]}  cxd4 {[%clk 0:02:58]} 4. Nxd4 {[%clk 0:03:00]}  Nf6 {[%clk 0:02:58]} 5. Nc3 {[%clk 0:03:00]}  Nc6 {[%clk 0:02:58]} 6. Bg5 {[%clk 0:03:00]}  e6 {[%clk 0:02:59]} 7. Qd2 {[%clk 0:02:58]}  Be7 {[%clk 0:02:59]} 8. O-O-O {[%clk 0:02:58]}  O-O {[%clk 0:02:59]} 9. h4 {[%clk 0:02:59]}  a6 {[%clk 0:02:52]} 10. Kb1 {[%clk 0:02:43]}  Nxd4 {[%clk 0:02:50]} 11. Qxd4 {[%clk 0:02:44]}  b5 {[%clk 0:02:49]} 12. f4 {[%clk 0:02:44]}  Bb7 {[%clk 0:02:48]} 13. Bd3 {[%clk 0:02:44]}  Rc8 {[%clk 0:02:45]} 14. Ne2 {[%clk 0:02:38]}  Qc7 {[%clk 0:02:42]} 15. Qe3 {[%clk 0:02:33]}  Qc5 {[%clk 0:02:35]} 16. Qf3 {[%clk 0:02:28]}  d5 {[%clk 0:02:30]} 17. e5 {[%clk 0:02:12]}  Ne4 {[%clk 0:02:24]} 18. Bxe7 {[%clk 0:02:09]}  Qxe7 {[%clk 0:02:23]} 19. Nd4 {[%clk 0:02:01]}  f6 {[%clk 0:02:17]} 20. exf6 {[%clk 0:01:53]}  Qxf6 {[%clk 0:02:16]} 21. Bxe4 {[%clk 0:01:52]}  dxe4 {[%clk 0:02:16]} 22. Qa3 {[%clk 0:01:42]}  Rfd8 {[%clk 0:01:52]} 23. Qe3 {[%clk 0:01:40]}  Rf8 {[%clk 0:01:43]} 24. g3 {[%clk 0:01:39]}  e5 {[%clk 0:01:42]} 25. Qb3+ {[%clk 0:01:35]}  Kh8 {[%clk 0:01:39]} 26. Ne6 {[%clk 0:01:35]}  Rfe8 {[%clk 0:01:31]} 27. Rd6 {[%clk 0:01:20]}  Rc6 {[%clk 0:01:27]} 28. Ng5 {[%clk 0:01:10]}  Rxd6 {[%clk 0:00:49]} 29. Nf7+ {[%clk 0:01:09]}  Qxf7 {[%clk 0:00:46]} 30. Qxf7 {[%clk 0:01:10]}  Red8 {[%clk 0:00:46]} 31. b3 {[%clk 0:01:03]}  R6d7 {[%clk 0:00:44]} 32. Qe6 {[%clk 0:01:01]}  exf4 {[%clk 0:00:42]} 33. gxf4 {[%clk 0:01:02]}  h6 {[%clk 0:00:39]} 34. Kb2 {[%clk 0:01:02]}  Rd6 {[%clk 0:00:38]} 35. Qe5 {[%clk 0:01:00]}  Rf6 {[%clk 0:00:36]} 36. Qe7 {[%clk 0:00:58]}  Rb8 {[%clk 0:00:32]} 37. Rg1 {[%clk 0:00:57]} 1-0


[Site "https://www.chess.com"]

[Event "Titled Tuesday Blitz May 17 Early 2022"]
[White "Khabinets, Ivan"]
[Black "Samunenkov, Ihor"]
[WhiteFideId "14115980"]
[BlackFideId "14187086"]
[WhiteElo "2114"]
[BlackElo "2409"]
[Result "1-0"]
[Round "11"]
[TimeControl "180+1"]
[Date "2022.05.17"]
[WhiteClock "0:00:14"]
[BlackClock "0:00:02"]

1. Nf3 {[%clk 0:02:59]}  c5 {[%clk 0:02:58]} 2. c4 {[%clk 0:02:56]}  Nf6 {[%clk 0:02:57]} 3. g3 {[%clk 0:02:56]}  Nc6 {[%clk 0:02:56]} 4. d4 {[%clk 0:02:56]}  cxd4 {[%clk 0:02:52]} 5. Nxd4 {[%clk 0:02:57]}  Qb6 {[%clk 0:02:47]} 6. Nc2 {[%clk 0:02:54]}  Ne5 {[%clk 0:02:41]} 7. Ne3 {[%clk 0:02:44]}  Nfg4 {[%clk 0:02:01]} 8. Nxg4 {[%clk 0:02:01]}  Nxg4 {[%clk 0:02:00]} 9. e3 {[%clk 0:02:02]}  Qc6 {[%clk 0:01:35]} 10. f3 {[%clk 0:01:36]}  Ne5 {[%clk 0:01:34]} 11. Bg2 {[%clk 0:01:31]}  Qxc4 {[%clk 0:01:32]} 12. Na3 {[%clk 0:01:03]}  Qa6 {[%clk 0:01:01]} 13. Bf1 {[%clk 0:01:02]}  Qa5+ {[%clk 0:00:50]} 14. Bd2 {[%clk 0:01:01]}  Qb6 {[%clk 0:00:49]} 15. Be2 {[%clk 0:00:53]}  d6 {[%clk 0:00:40]} 16. O-O {[%clk 0:00:47]}  g6 {[%clk 0:00:31]} 17. f4 {[%clk 0:00:43]}  Nc6 {[%clk 0:00:26]} 18. Nc4 {[%clk 0:00:44]}  Qd8 {[%clk 0:00:21]} 19. Bc3 {[%clk 0:00:44]}  Rg8 {[%clk 0:00:16]} 20. Rc1 {[%clk 0:00:43]}  Bg7 {[%clk 0:00:16]} 21. Bf3 {[%clk 0:00:40]}  Bxc3 {[%clk 0:00:16]} 22. Rxc3 {[%clk 0:00:41]}  Bd7 {[%clk 0:00:16]} 23. a3 {[%clk 0:00:38]}  Rc8 {[%clk 0:00:15]} 24. Qd2 {[%clk 0:00:37]}  Be6 {[%clk 0:00:11]} 25. Rfc1 {[%clk 0:00:35]}  f6 {[%clk 0:00:11]} 26. Bd5 {[%clk 0:00:34]}  Kf7 {[%clk 0:00:11]} 27. e4 {[%clk 0:00:26]}  Qd7 {[%clk 0:00:07]} 28. Re1 {[%clk 0:00:19]}  Rc7 {[%clk 0:00:04]} 29. Rce3 {[%clk 0:00:19]}  Re8 {[%clk 0:00:04]} 30. b4 {[%clk 0:00:18]}  Bxd5 {[%clk 0:00:04]} 31. exd5 {[%clk 0:00:19]}  Nb8 {[%clk 0:00:03]} 32. Qd4 {[%clk 0:00:18]}  b5 {[%clk 0:00:02]} 33. Na5 {[%clk 0:00:17]}  Rcc8 {[%clk 0:00:02]} 34. Re6 {[%clk 0:00:17]}  Rc7 {[%clk 0:00:02]} 35. h4 {[%clk 0:00:16]}  Qd8 {[%clk 0:00:02]} 36. h5 {[%clk 0:00:17]}  Qd7 {[%clk 0:00:02]} 37. Qd3 {[%clk 0:00:17]}  Qd8 {[%clk 0:00:02]} 38. Kg2 {[%clk 0:00:18]}  Qd7 {[%clk 0:00:02]} 39. Rh1 {[%clk 0:00:18]}  Kg7 {[%clk 0:00:02]} 40. Kf3 {[%clk 0:00:18]}  Rcc8 {[%clk 0:00:02]} 41. Qe2 {[%clk 0:00:15]}  Na6 {[%clk 0:00:02]} 42. Qh2 {[%clk 0:00:15]}  Rh8 {[%clk 0:00:01]} 43. Rhe1 {[%clk 0:00:13]}  Rce8 {[%clk 0:00:02]} 44. Qe2 {[%clk 0:00:14]} 1-0


[Site "https://www.chess.com"]

[Event "Titled Tuesday Blitz May 17 Early 2022"]
[White "Klekowski, Maciej"]
[Black "Sadhwani, Raunak"]
[WhiteFideId "1132717"]
[BlackFideId "35093487"]
[WhiteElo "2476"]
[BlackElo "2616"]
[Result "0-1"]
[Round "11"]
[TimeControl "180+1"]
[Date "2022.05.17"]
[WhiteClock "0:00:40"]
[BlackClock "0:00:56"]

1. c4 {[%clk 0:03:00]}  e5 {[%clk 0:03:00]} 2. g3 {[%clk 0:03:01]}  Nc6 {[%clk 0:02:59]} 3. Bg2 {[%clk 0:03:00]}  Bc5 {[%clk 0:02:58]} 4. Nc3 {[%clk 0:03:00]}  d6 {[%clk 0:02:58]} 5. e3 {[%clk 0:03:00]}  a6 {[%clk 0:02:59]} 6. Nge2 {[%clk 0:03:00]}  Ba7 {[%clk 0:02:59]} 7. d4 {[%clk 0:03:00]}  Nge7 {[%clk 0:02:50]} 8. O-O {[%clk 0:02:51]}  h5 {[%clk 0:02:51]} 9. h4 {[%clk 0:02:44]}  Bg4 {[%clk 0:02:50]} 10. f3 {[%clk 0:02:43]}  Bf5 {[%clk 0:02:48]} 11. Kh2 {[%clk 0:02:34]}  Ng6 {[%clk 0:02:23]} 12. d5 {[%clk 0:02:29]}  Nce7 {[%clk 0:02:17]} 13. e4 {[%clk 0:02:28]}  Bd7 {[%clk 0:02:18]} 14. Qd3 {[%clk 0:02:24]}  O-O {[%clk 0:02:10]} 15. Be3 {[%clk 0:02:03]}  Bxe3 {[%clk 0:02:11]} 16. Qxe3 {[%clk 0:02:04]}  f5 {[%clk 0:02:12]} 17. Qg5 {[%clk 0:02:03]}  f4 {[%clk 0:02:12]} 18. Qxh5 {[%clk 0:01:58]}  fxg3+ {[%clk 0:02:11]} 19. Kxg3 {[%clk 0:01:59]}  Rf6 {[%clk 0:02:01]} 20. Rg1 {[%clk 0:01:35]}  Nh8 {[%clk 0:01:22]} 21. Kf2 {[%clk 0:01:29]}  Nf7 {[%clk 0:01:22]} 22. Bh1 {[%clk 0:01:15]}  Rh6 {[%clk 0:01:16]} 23. Ng3 {[%clk 0:01:16]}  g6 {[%clk 0:01:08]} 24. Qxh6 {[%clk 0:01:09]}  Nxh6 {[%clk 0:01:09]} 25. h5 {[%clk 0:01:01]}  g5 {[%clk 0:01:07]} 26. Nf1 {[%clk 0:00:56]}  Nf7 {[%clk 0:01:01]} 27. Ne3 {[%clk 0:00:57]}  Kh7 {[%clk 0:01:01]} 28. Ng4 {[%clk 0:00:50]}  Bxg4 {[%clk 0:00:59]} 29. fxg4 {[%clk 0:00:50]}  Ng8 {[%clk 0:01:00]} 30. Kg3 {[%clk 0:00:47]}  Nfh6 {[%clk 0:01:00]} 31. Raf1 {[%clk 0:00:46]}  Qd7 {[%clk 0:01:01]} 32. Bf3 {[%clk 0:00:47]}  Rf8 {[%clk 0:01:01]} 33. Ne2 {[%clk 0:00:43]}  Nf6 {[%clk 0:01:00]} 34. Rg2 {[%clk 0:00:40]}  Nfxg4 {[%clk 0:00:56]} 0-1


[Site "https://www.chess.com"]